bitfinex/quotes_SOLUSD_20250819
["timestamp","ask_amount","ask_price","bid_price","bid_amount"]
[1755640710168,0.7,179.41,179.4,4.62525287]
[1755640710349,0.03,179.41,179.4,4.62525287]
[1755640713461,0.03,179.41,179.4,0.06]
[1755640713753,0.03,179.41,179.4,5.34525287]
[1755640714271,0.03,179.41,179.4,4.62525287]
[1755640714567,3.79298657,179.41,179.4,4.62525287]
[1755640716062,0.03,179.41,179.4,18.93084688]
[1755640721474,0.03,179.41,179.4,35.68828288]
[1755640723656,0.03,179.41,179.4,61.68828288]
[1755640725075,0.03,179.41,179.4,80.09145593]
[1755640728591,0.03,179.41,179.4,54.09145593]
[1755640729309,0.03,179.43,179.42,39.59559401]
[1755640729508,0.03,179.43,179.42,82.90084688]
[1755640729816,0.03,179.43,179.42,83.61084688]
[1755640729971,0.03,179.43,179.42,85.84479688]
[1755640731489,0.73,179.43,179.42,46.39479688]
[1755640731692,0.73,179.43,179.42,44.16084688]
[1755640731902,0.73,179.43,179.42,18.16084688]
[1755640737622,0.73,179.43,179.42,13.59559401]
[1755640737818,0.73,179.43,179.42,18.16084688]
[1755640737993,0.73,179.43,179.42,13.59559401]
[1755640738192,0.73,179.43,179.42,18.16084688]
[1755640739424,0.73,179.43,179.42,13.59559401]
[1755640739609,0.73,179.43,179.42,18.16084688]
[1755640740421,0.73,179.43,179.42,4.56525287]
[1755640740920,0.73,179.43,179.4,4.62525287]
[1755640741922,0.73,179.43,179.41,4.56525287]
[1755640742112,0.03,179.43,179.41,4.56525287]
[1755640742440,0.7,179.42,179.41,4.56525287]
[1755640749249,0.7,179.42,179.4,0.06]
[1755640749542,0.7,179.42,179.4,4.62525287]
[1755640750522,0.7,179.41,179.4,4.62525287]
[1755640751334,0.7,179.41,179.4,0.06]
[1755640751530,0.7,179.41,179.4,4.62525287]
[1755640753123,0.7,179.41,179.4,0.06]
[1755640756648,4.48677855,179.42,179.4,0.06]
[1755640756957,0.73,179.42,179.4,0.06]
[1755640758441,0.7,179.41,179.4,0.06]
[1755640763053,0.73,179.42,179.4,0.06]
[1755640763950,0.03,179.42,179.4,0.06]
[1755640764137,0.7,179.41,179.4,0.06]
[1755640764828,39.45,179.42,179.4,0.06]
[1755640766546,39.45,179.42,179.41,0.67]
[1755640766547,38.75,179.42,179.41,0.67]
[1755640766944,0.03,179.42,179.41,5.23525287]
[1755640767848,0.03,179.42,179.41,18.83084688]
[1755640768160,0.03,179.42,179.41,22.61539588]
[1755640768858,0.03,179.42,179.41,18.83084688]
[1755640769063,0.03,179.42,179.41,21.06517188]
[1755640770460,0.03,179.42,179.41,14.26559401]
[1755640770767,0.03,179.42,179.4,13.65559401]
[1755640770968,0.03,179.42,179.4,14.32559401]
[1755640775942,0.03,179.42,179.41,0.69]
[1755640779367,0.03,179.42,179.41,14.28559401]
[1755640779668,0.03,179.42,179.41,21.08517188]
[1755640781175,0.03,179.42,179.41,16.51991901]
[1755640781386,0.03,179.42,179.41,21.08517188]
[1755640782587,0.03,179.42,179.41,2.234325]
[1755640782884,0.74,179.42,179.4,0.06]
[1755640783047,0.71,179.41,179.4,0.06]
[1755640785278,3.76300497,179.41,179.4,0.06]
[1755640790467,0.74,179.42,179.4,0.06]
[1755640790980,0.03,179.41,179.4,0.06]
[1755640795076,0.03,179.41,179.4,0.75]
[1755640795602,0.03,179.41,179.4,14.34559401]
[1755640796191,0.03,179.41,179.4,13.65559401]
[1755640800307,0.03,179.41,179.4,14.34559401]
[1755640800479,0.03,179.41,179.4,13.65559401]
[1755640800801,0.03,179.41,179.4,0.06]
[1755640800802,47.93063234,179.41,179.4,0.06]
[1755640801709,52.60591945,179.41,179.4,0.06]
[1755640802382,47.93063234,179.41,179.39,0.06]
[1755640802582,39.73931808,179.4,179.39,0.06]
[1755640803287,35.03847077,179.4,179.39,0.06]
[1755640804398,26.0,179.38,179.37,0.06]
[1755640804595,4.56525287,179.37,179.36,0.06]
[1755640804794,8.32847077,179.37,179.36,0.06]
[1755640804990,8.99847077,179.37,179.36,0.06]
[1755640806406,11.57459062,179.37,179.36,0.06]
[1755640807795,11.71675219,179.37,179.36,0.06]
[1755640810595,11.57459062,179.37,179.36,0.06]
[1755640810792,46.57137272,179.37,179.36,0.06]
[1755640812712,50.31687942,179.37,179.36,0.06]
[1755640815997,46.57137272,179.37,179.36,0.06]
[1755640816327,39.43,179.37,179.36,0.06]
[1755640816620,46.57137272,179.37,179.36,0.06]
[1755640816914,177.57137272,179.37,179.36,0.06]
[1755640817721,181.31408356,179.37,179.36,0.06]
[1755640818091,181.45624513,179.37,179.36,0.06]
[1755640819097,50.45624513,179.37,179.36,0.06]
[1755640819495,50.45624513,179.37,179.32,0.06]
[1755640819496,0.14216157,179.36,179.32,0.06]
[1755640819818,25.29183914,179.36,179.32,0.06]
[1755640820023,7.28353429,179.35,179.32,0.06]
[1755640820204,50.45624513,179.35,179.32,0.06]
[1755640820540,26.0,179.33,179.32,0.06]
[1755640820701,75.80624513,179.33,179.32,0.06]
[1755640820900,76.47624513,179.33,179.32,0.06]
[1755640823313,7.28353429,179.31,179.3,0.06]
[1755640823520,46.08353429,179.31,179.3,0.06]
[1755640823720,50.49624513,179.31,179.3,0.06]
[1755640826009,46.08353429,179.31,179.3,0.74]
[1755640826612,46.08353429,179.31,179.3,0.06]
[1755640827315,46.08353429,179.31,179.3,0.74]
[1755640827516,46.08353429,179.31,179.3,0.06]
[1755640829126,46.08353429,179.31,179.3,0.74]
[1755640837875,46.08353429,179.31,179.3,0.06]
[1755640839116,46.79353429,179.31,179.3,0.06]
[1755640840758,50.53573037,179.31,179.3,0.06]
[1755640841943,50.53573037,179.31,179.27,0.06]
[1755640841944,26.0,179.28,179.27,0.06]
[1755640842166,75.6835688,179.28,179.27,0.06]
[1755640842330,76.3935688,179.28,179.27,0.06]
[1755640842733,83.67710309,179.28,179.27,0.06]
[1755640843959,76.53573037,179.28,179.27,0.06]
[1755640845241,83.67710309,179.28,179.27,0.06]
[1755640847028,86.5957574,179.28,179.27,0.06]
[1755640847648,20.8791283,179.27,179.25,0.06]
[1755640847833,49.84573037,179.26,179.25,0.06]
[1755640848038,0.14216157,179.22,179.19,0.66]
[1755640848233,7.28353429,179.2,179.19,0.66]
[1755640848435,11.02573037,179.2,179.19,0.66]
[1755640849655,0.14216157,179.19,179.18,0.2]
[1755640849849,49.84573037,179.19,179.18,0.2]
[1755640854485,46.10353429,179.19,179.18,0.2]
[1755640856650,38.96216157,179.19,179.18,0.86]
[1755640856842,46.10353429,179.19,179.18,0.86]
[1755640857963,7.14137272,179.19,179.18,0.86]
[1755640858151,45.98137272,179.19,179.18,0.86]
[1755640858666,38.84,179.19,179.18,0.86]
[1755640858875,45.98137272,179.19,179.18,0.86]
[1755640859367,45.98137272,179.19,179.18,0.2]
[1755640860556,38.84,179.19,179.18,0.86]
[1755640860765,45.98137272,179.19,179.18,0.86]
[1755640863851,45.98137272,179.19,179.18,0.2]
[1755640864473,45.98137272,179.19,179.18,0.87]
[1755640864784,46.12353429,179.19,179.18,0.2]
[1755640867067,46.12353429,179.19,179.18,0.87]
[1755640867268,38.98216157,179.19,179.18,0.87]
[1755640867471,46.12353429,179.19,179.18,0.87]
[1755640870306,46.12353429,179.19,179.18,0.2]
[1755640871287,46.12353429,179.19,179.18,0.87]
[1755640872406,46.12353429,179.19,179.18,0.2]
[1755640874402,46.12353429,179.19,179.18,0.87]
[1755640875513,38.84,179.19,179.18,0.87]
[1755640875718,7.14137272,179.2,179.18,0.87]
[1755640876006,38.82,179.19,179.18,0.2]
[1755640876217,45.96137272,179.19,179.18,0.2]
[1755640876381,45.96137272,179.19,179.18,0.87]
[1755640877274,7.14137272,179.21,179.18,0.87]
[1755640877576,38.84,179.2,179.19,0.67]
[1755640884500,38.84,179.21,179.19,0.67]
[1755640885697,38.84,179.22,179.19,7.81137272]
[1755640885898,38.84,179.22,179.2,0.67]
[1755640886510,131.0,179.23,179.2,0.67]
[1755640886694,169.82,179.23,179.2,0.67]
[1755640889017,131.0,179.23,179.21,7.14137272]
[1755640889404,131.0,179.23,179.22,0.67]
[1755640892026,38.82,179.24,179.22,0.67]
[1755640892329,38.85,179.25,179.22,7.81137272]
[1755640892504,38.85,179.25,179.23,0.67]
[1755640892701,0.03,179.25,179.23,7.81137272]
[1755640892902,0.03,179.25,179.24,7.14137272]
[1755640893214,0.03,179.25,179.24,7.81137272]
[1755640894717,0.03,179.25,179.24,0.67]
[1755640898022,46.70137272,179.25,179.19,0.06]
[1755640898206,7.14137272,179.23,179.19,0.06]
[1755640898413,38.86,179.22,179.19,0.06]
[1755640898597,39.55,179.22,179.19,0.06]
[1755640898797,0.69,179.21,179.19,0.06]
[1755640899023,39.55,179.22,179.19,0.06]
[1755640899333,46.69137272,179.22,179.19,0.06]
[1755640900419,7.83137272,179.21,179.19,0.06]
[1755640900796,38.86,179.22,179.19,0.06]
[1755640900997,0.69,179.21,179.19,0.06]
[1755640901597,46.69137272,179.22,179.19,0.06]
[1755640902727,0.69,179.21,179.19,0.06]
[1755640905029,45.98137272,179.2,179.19,0.06]
[1755640905407,46.67137272,179.2,179.19,0.06]
[1755640907134,50.56274291,179.2,179.19,0.06]
[1755640913831,49.75058134,179.2,179.19,0.06]
[1755640914022,10.89058134,179.2,179.19,0.06]
[1755640914224,46.00137272,179.2,179.19,0.06]
[1755640914538,49.75058134,179.2,179.19,0.06]
[1755640914916,46.00137272,179.2,179.19,0.06]
[1755640916637,7.14137272,179.2,179.19,0.06]
[1755640916937,46.00137272,179.2,179.19,0.06]
[1755640917136,46.00137272,179.2,179.19,0.72]
[1755640917137,38.86,179.2,179.19,0.72]
[1755640917333,7.14137272,179.23,179.19,0.72]
[1755640917529,38.86,179.22,179.19,0.72]
[1755640917836,0.03,179.25,179.2,7.14137272]
[1755640918140,0.03,179.25,179.21,0.66]
[1755640918141,38.88,179.24,179.21,0.66]
[1755640919068,38.88,179.24,179.22,7.14137272]
[1755640919243,0.03,179.25,179.23,0.66]
[1755640920264,0.03,179.25,179.23,7.80137272]
[1755640920453,0.03,179.25,179.24,7.14137272]
[1755640920639,0.03,179.25,179.24,7.80137272]
[1755640921252,0.03,179.25,179.24,21.39696673]
[1755640921966,0.03,179.25,179.24,47.39696673]
[1755640922174,0.03,179.25,179.24,21.5391283]
[1755640922687,0.03,179.25,179.24,23.63304073]
[1755640922863,0.03,179.25,179.24,0.66]
[1755640923071,0.03,179.25,179.22,0.66]
[1755640923370,7.86137272,179.25,179.21,2.896824]
[1755640923566,7.14137272,179.23,179.21,0.66]
[1755640923740,7.14137272,179.22,179.19,0.72]
[1755640923935,0.69,179.24,179.19,0.72]
[1755640923936,46.81137272,179.21,179.19,0.06]
[1755640924181,7.83137272,179.2,179.19,0.06]
[1755640924464,11.57649926,179.2,179.19,0.06]
[1755640924638,7.83137272,179.2,179.19,0.06]
[1755640924835,7.80137272,179.2,179.19,0.06]
[1755640925062,37.6889475,179.2,179.19,0.06]
[1755640925251,26.0,179.19,179.18,0.2]
[1755640925450,0.14216157,179.18,179.15,0.06]
[1755640925765,0.14216157,179.12,179.04,0.93694689]
[1755640925946,7.14137272,179.08,179.04,0.93694689]
[1755640926144,39.76,179.11,179.01,0.2]
[1755640926145,7.14137272,179.05,179.01,0.2]
[1755640926344,7.14137272,179.02,179.01,0.2]
[1755640926769,46.34137272,179.02,179.01,0.2]
[1755640926978,47.00137272,179.02,179.01,0.2]
[1755640927466,33.14137272,179.08,179.01,8.06137272]
[1755640927789,39.24,179.07,179.03,7.14137272]
[1755640928077,39.24,179.07,179.04,0.72]
[1755640928247,39.24,179.07,179.05,0.72]
[1755640928449,7.14137272,179.08,179.05,0.72]
[1755640928674,39.24,179.07,179.05,0.72]
[1755640929174,39.26,179.06,179.05,0.72]
[1755640930192,39.26,179.06,179.03,0.72]
[1755640930481,7.14137272,179.04,179.01,0.2]
[1755640930702,7.14137272,179.02,179.01,0.2]
[1755640930871,46.40137272,179.02,179.01,0.2]
[1755640931262,47.06137272,179.02,179.01,0.2]
[1755640931579,47.20353429,179.02,179.01,0.2]
[1755640932096,73.20353429,179.02,179.01,0.2]
[1755640932250,77.21449973,179.02,179.01,0.2]
[1755640932452,37.29449973,179.02,179.01,0.2]
[1755640932690,65.3,179.02,179.01,0.2]
[1755640932854,76.45233816,179.02,179.01,0.2]
[1755640933254,50.45233816,179.02,179.01,0.2]
[1755640933882,50.51233816,179.02,179.01,0.2]
[1755640935209,51.17233816,179.02,179.01,0.2]
[1755640935705,26.0,178.99,178.97,0.06]
[1755640935877,50.65449973,178.98,178.9,13.59559401]
[1755640936076,11.15233816,178.92,178.9,14.31559401]
[1755640936306,50.55233816,178.92,178.91,0.72]
[1755640939903,50.55233816,178.92,178.89,13.59559401]
[1755640940110,11.15233816,178.9,178.88,0.72]
[1755640940403,11.15233816,178.9,178.88,14.31559401]
[1755640940404,11.15233816,178.89,178.88,14.31559401]
[1755640940792,39.38,178.9,178.88,14.31559401]
[1755640940989,39.38,178.9,178.89,0.72]
[1755640941302,39.38,178.9,178.89,0.78]
[1755640942525,11.15233816,178.95,178.89,0.78]
[1755640942832,39.38,178.94,178.89,11.93233816]
[1755640943141,0.03,178.99,178.93,13.59559401]
[1755640943299,11.15233816,178.97,178.94,0.72]
[1755640943490,11.15233816,178.95,178.9,14.31559401]
[1755640943699,39.42,178.95,178.9,0.72]
[1755640943896,11.15233816,178.91,178.89,0.06]
[1755640944109,11.15233816,178.9,178.89,0.06]
[1755640945410,39.46,178.91,178.89,0.06]
[1755640945825,11.15233816,178.9,178.89,0.06]
[1755640947012,39.46,178.91,178.89,0.06]
[1755640947304,11.15233816,178.9,178.89,0.06]
[1755640947515,11.81233816,178.9,178.89,0.06]
[1755640948194,39.48,178.9,178.89,0.06]
[1755640948427,50.63233816,178.9,178.89,0.06]
[1755640949117,50.63233816,178.9,178.89,0.78]
[1755640949327,50.67233816,178.9,178.89,0.78]
[1755640949541,50.67233816,178.9,178.89,0.06]
[1755640950230,11.15233816,178.92,178.89,0.78]
[1755640950542,50.67233816,178.91,178.89,0.78]
[1755640950713,50.67233816,178.91,178.89,0.06]
[1755640951027,50.67233816,178.91,178.9,0.72]
[1755640951411,50.67233816,178.91,178.89,0.06]
[1755640951614,50.67233816,178.91,178.89,0.78]
[1755640952037,39.52,178.91,178.9,0.72]
[1755640952534,11.15233816,178.92,178.9,0.72]
[1755640952710,39.52,178.92,178.9,0.72]
[1755640953206,39.52,178.92,178.91,0.72]
[1755640953718,11.15233816,178.94,178.91,0.72]
[1755640953907,39.52,178.93,178.91,0.72]
[1755640954231,50.67233816,178.93,178.91,0.72]
[1755640954435,11.84233816,178.92,178.89,0.06]
[1755640954640,11.15233816,178.9,178.89,0.06]
[1755640955058,11.84233816,178.9,178.85,0.06]
[1755640955197,11.15233816,178.86,178.85,0.06]
[1755640955403,50.89449973,178.86,178.76,0.67]
[1755640955639,11.15233816,178.77,178.74,14.265594]
[1755640955813,0.14216157,178.84,178.74,14.265594]
[1755640955814,39.62,178.76,178.74,13.595594]
[1755640956136,11.15233816,178.75,178.74,13.595594]
[1755640956315,11.15233816,178.75,178.71,0.87]
[1755640956523,39.62,178.76,178.72,26.67]
[1755640956725,0.69,178.84,178.76,13.59559401]
[1755640957024,11.15233816,178.81,178.77,0.67]
[1755640957215,11.15233816,178.8,178.77,0.67]
[1755640957542,11.15233816,178.79,178.77,0.67]
[1755640957747,39.64,178.8,178.77,0.67]
[1755640957949,11.15233816,178.79,178.77,0.67]
[1755640958146,11.15233816,178.79,178.75,13.59559401]
[1755640958350,11.15233816,178.76,178.72,13.59559401]
[1755640958530,11.15233816,178.74,178.71,26.2]
[1755640958848,11.15233816,178.73,178.71,26.2]
[1755640959046,40.55,178.77,178.71,0.2]
[1755640959359,11.15233816,178.72,178.71,0.2]
[1755640960038,40.02,178.73,178.71,0.2]
[1755640960220,40.12,178.74,178.71,0.87]
[1755640960424,40.12,178.77,178.73,11.15233816]
[1755640960654,40.12,178.77,178.71,39.79559401]
[1755640960655,51.29233816,178.82,178.77,13.59559401]
[1755640960850,51.29233816,178.82,178.78,0.67]
[1755640961061,51.29233816,178.82,178.74,13.59559401]
[1755640961062,11.15233816,178.79,178.74,13.59559401]
[1755640961231,11.15233816,178.75,178.73,0.67]
[1755640961432,11.15233816,178.75,178.71,0.2]
[1755640961433,11.15233816,178.74,178.71,0.2]
[1755640961650,11.15233816,178.75,178.71,0.2]
[1755640961958,11.15233816,178.72,178.71,0.2]
[1755640962175,40.14,178.76,178.71,0.2]
[1755640962326,11.15233816,178.72,178.71,0.2]
[1755640962825,52.12233816,178.72,178.71,0.2]
[1755640963452,40.28,178.72,178.71,0.2]
[1755640963748,26.0,178.77,178.71,0.87]
[1755640963749,11.15233816,178.75,178.71,0.87]
[1755640964150,11.15233816,178.74,178.71,0.87]
[1755640964325,11.15233816,178.74,178.72,0.67]
[1755640964529,11.15233816,178.74,178.71,0.2]
[1755640964729,11.15233816,178.74,178.71,0.87]
[1755640964930,0.69,178.79,178.73,13.59559401]
[1755640965131,0.69,178.85,178.75,24.74793217]
[1755640965360,11.15233816,178.82,178.76,11.82233816]
[1755640965540,11.15233816,178.81,178.76,0.67]
[1755640965740,11.15233816,178.8,178.76,0.67]
[1755640966137,0.69,178.92,178.83,26.0]
[1755640966342,4.71403158,178.97,178.84,0.67]
[1755640966343,11.15233816,178.89,178.84,0.67]
[1755640966548,11.15233816,178.89,178.81,13.59559401]
[1755640966549,11.15233816,178.85,178.81,14.26559401]
[1755640966950,11.15233816,178.91,178.84,11.15233816]
[1755640967146,40.4,178.91,178.85,0.67]
[1755640967356,11.15233816,178.86,178.81,0.67]
[1755640967563,11.15233816,178.85,178.81,0.67]
[1755640967870,37.15233816,178.88,178.83,13.59559401]
[1755640968171,40.46,178.9,178.84,11.82233816]
[1755640968350,40.46,178.9,178.85,13.59559401]
[1755640968543,40.46,178.9,178.87,13.59559401]
[1755640968738,0.03,178.97,178.88,0.67]
[1755640968739,11.15233816,178.94,178.88,0.67]
[1755640969067,40.46,178.96,178.85,13.59559401]
[1755640969240,11.15233816,178.86,178.8,11.15233816]
[1755640969433,11.15233816,178.86,178.82,0.67]
[1755640969632,41.17,178.9,178.84,13.59559401]
[1755640969633,40.48,178.9,178.84,13.59559401]
[1755640969847,40.48,178.9,178.86,13.59559401]
[1755640970040,11.15233816,178.89,178.83,11.15233816]
[1755640970248,11.15233816,178.85,178.8,40.26559401]
[1755640970479,11.15233816,178.85,178.7,13.9896386]
[1755640970480,37.15233816,178.81,178.74,0.67]
[1755640970672,11.15233816,178.78,178.74,0.67]
[1755640970856,11.15233816,178.8,178.74,0.67]
[1755640971174,66.48,178.84,178.74,0.67]
[1755640971175,11.15233816,178.78,178.74,0.67]
[1755640971545,11.15233816,178.76,178.71,0.87]
[1755640971747,11.15233816,178.79,178.73,11.15233816]
[1755640971967,37.15233816,178.81,178.75,11.15233816]
[1755640972266,11.15233816,178.81,178.76,14.26559401]
[1755640972439,17.54388893,178.81,178.77,0.67]
[1755640972644,17.54388893,178.78,178.74,13.59559401]
[1755640972853,26.0,178.81,178.74,13.59559401]
[1755640973049,17.54388893,178.78,178.74,14.26559401]
[1755640973454,26.69,178.81,178.75,0.67]
[1755640973653,17.54388893,178.79,178.75,0.67]
[1755640974050,26.0,178.81,178.76,13.59559401]
[1755640974270,17.54388893,178.82,178.77,14.26559401]
[1755640974467,0.69,178.86,178.79,13.59559401]
[1755640974684,40.52,178.88,178.82,13.59559401]
[1755640974844,58.06388893,178.88,178.83,13.59559401]
[1755640975040,0.69,178.87,178.79,13.59559401]
[1755640975311,0.69,178.87,178.79,31.13948294]
[1755640975577,17.54388893,178.84,178.78,17.54388893]
[1755640975752,17.54388893,178.83,178.79,13.59559401]
[1755640975949,17.54388893,178.84,178.8,0.67]
[1755640976150,0.72,178.9,178.81,14.26559401]
[1755640976448,17.54388893,178.89,178.83,13.59559401]
[1755640976643,17.54388893,178.84,178.75,39.73775558]
[1755640976863,17.54388893,178.84,178.78,31.13948294]
[1755640977039,17.54388893,178.84,178.8,13.59559401]
[1755640977441,40.6,178.86,178.81,31.80948294]
[1755640977644,17.54388893,178.88,178.82,18.21388893]
[1755640977897,41.27,178.89,178.83,13.59559401]
[1755640978045,17.54388893,178.84,178.79,0.67]
[1755640978247,17.54388893,178.85,178.8,13.59559401]
[1755640978547,43.54388893,178.86,178.8,31.13948294]
[1755640979173,43.54388893,178.86,178.8,31.80948294]
[1755640979513,17.54388893,178.88,178.82,13.59559401]
[1755640979677,17.54388893,178.87,178.82,13.59559401]
[1755640980213,26.03,178.9,178.86,31.13948294]
[1755640980214,0.03,178.9,178.86,31.13948294]
[1755640980380,0.03,178.9,178.89,17.54388893]
[1755640980572,0.03,178.9,178.89,31.13948294]
[1755640981180,0.03,178.9,178.89,31.80948294]
[1755640981382,0.03,178.9,178.89,13.59559401]
[1755640981597,0.03,178.9,178.89,31.80948294]
[1755640981804,0.03,178.9,178.87,13.59559401]
[1755640981976,0.03,178.9,178.82,0.67]
[1755640981977,14.83461067,178.88,178.82,0.67]
[1755640982176,0.03,178.9,178.86,13.59559401]
[1755640982409,14.83461067,178.89,178.83,13.59559401]
[1755640982576,0.03,178.9,178.87,14.83461067]
[1755640982801,0.03,178.9,178.86,14.83461067]
[1755640983003,0.03,178.9,178.87,28.43020468]
[1755640983314,0.03,178.9,178.87,13.59559401]
[1755640983488,0.03,178.9,178.87,14.26559401]
[1755640984405,0.03,178.9,178.88,0.71]
[1755640984607,0.03,178.9,178.89,28.43020468]
[1755640984810,0.03,178.9,178.89,29.14020468]
[1755640985013,0.03,178.9,178.89,28.43020468]
[1755640985190,0.03,178.92,178.91,39.59559401]
[1755640985389,0.03,178.99,178.92,13.59559401]
[1755640985778,0.03,178.99,178.94,13.59559401]
[1755640985980,0.03,178.99,178.96,13.59559401]
[1755640986213,0.03,178.99,178.96,28.43020468]
[1755640986513,0.03,178.99,178.96,29.28236625]
[1755640986670,0.03,178.99,178.96,29.14020468]
[1755640986981,0.03,178.99,178.93,0.14216157]
[1755640987190,0.03,178.99,178.96,28.43020468]
[1755640987414,0.03,178.99,178.96,13.59559401]
[1755640987621,0.03,178.99,178.96,14.83461067]
[1755640987971,0.03,178.99,178.96,29.14020468]
[1755640988216,0.03,178.99,178.96,29.28236625]
[1755640988395,0.03,178.99,178.96,14.30559401]
[1755640988707,0.03,178.99,178.96,13.59559401]
[1755640989208,0.03,178.99,178.96,29.14020468]
[1755640989623,0.03,178.99,178.96,13.59559401]
[1755640991002,14.83461067,178.98,178.93,0.71]
[1755640991202,0.03,178.99,178.93,13.59559401]
[1755640991374,14.83461067,178.96,178.92,13.59559401]
[1755640991584,14.83461067,178.95,178.92,13.59559401]
[1755640991796,14.83461067,178.95,178.9,13.59559401]
[1755640992029,14.83461067,178.94,178.9,13.59559401]
[1755640992178,0.65,178.95,178.9,13.59559401]
[1755640992378,14.83461067,178.96,178.91,0.71]
[1755640992690,14.83461067,178.96,178.92,0.71]
[1755640992903,26.65,178.98,178.92,0.71]
[1755640993090,14.83461067,178.96,178.92,0.71]
[1755640993479,0.03,178.99,178.95,14.83461067]
[1755640993682,0.03,178.99,178.93,14.30559401]
[1755640993909,0.03,178.99,178.96,13.59559401]
[1755640994412,0.03,178.99,178.89,26.0]
[1755640994413,0.03,178.99,178.93,9.55645165]
[1755640994728,9.55645165,178.94,178.88,36.26645165]
[1755640994895,26.0,178.98,178.92,9.55645165]
[1755640995081,35.55645165,178.98,178.89,14.30559401]
[1755640995277,9.58645165,178.97,178.91,23.15204566]
[1755640995477,0.03,178.97,178.92,10.26645165]
[1755640995681,9.55645165,178.96,178.92,13.59559401]
[1755640996210,0.03,178.97,178.88,23.15204566]
[1755640996511,0.03,178.97,178.86,26.0]
[1755640996512,9.55645165,178.96,178.9,23.15204566]
[1755640996882,0.03,178.97,178.92,23.15204566]
[1755640997287,0.03,178.97,178.92,23.86204566]
[1755640997819,0.03,178.97,178.93,10.26645165]
[1755640997992,0.03,178.97,178.94,9.55645165]
[1755640998305,0.03,178.97,178.94,10.26645165]
[1755640998792,0.03,178.97,178.94,9.55645165]
[1755640998983,0.03,178.97,178.96,9.55645165]
[1755640999190,0.03,178.97,178.96,23.15204566]
[1755640999391,0.03,178.97,178.96,23.86204566]
[1755640999800,0.03,178.99,178.98,26.0]
[1755640999998,0.03,179.01,179.0,49.15204566]
[1755641000325,0.03,179.01,179.0,49.29420723]
[1755641000484,41.0,179.14,179.0,49.29420723]
[1755641000485,41.0,179.14,179.03,26.0]
[1755641000688,9.55645165,179.11,179.05,9.55645165]
[1755641000905,2.9189432,179.2,179.1,9.55645165]
[1755641001103,57.810262,179.22,179.06,0.71]
[1755641001104,0.65,179.16,179.12,9.55645165]
[1755641001302,0.65,179.16,179.07,13.59559401]
[1755641001303,0.65,179.16,179.1,13.59559401]
[1755641001513,26.1,179.15,179.1,13.59559401]
[1755641001702,0.1,179.15,179.1,0.71]
[1755641001891,0.1,179.15,179.11,9.55645165]
[1755641002107,0.1,179.15,179.1,10.26645165]
[1755641002291,0.1,179.15,179.08,0.71]
[1755641002498,0.1,179.15,179.1,14.78712623]
[1755641002499,0.75,179.15,179.1,14.78712623]
[1755641002692,0.75,179.15,179.06,26.0]
[1755641002693,14.78712623,179.12,179.06,28.38272024]
[1755641002896,14.78712623,179.11,179.05,15.49712623]
[1755641003093,14.78712623,179.08,179.03,16.789322]
[1755641003294,14.78712623,179.08,179.03,13.59559401]
[1755641003501,14.78712623,179.08,179.02,0.71]
[1755641003802,14.78712623,179.08,178.84,31.60712623]
[1755641003803,14.78712623,179.06,178.93,10.0]
[1755641004003,14.78712623,179.06,178.97,16.794961]